fUSD/lending_fUSD_20250503
["ID","MTS","AMOUNT","RATE_DAILY","PERIOD"]
[359751390,1746299440677,-450.0,0.00019601,2]
[359751391,1746299440686,-450.0,0.00019601,2]
[359751392,1746299440695,-450.0,0.00019601,2]
[359751393,1746299440704,-450.0,0.00019601,2]
[359751394,1746299440714,-450.0,0.00019601,2]
[359751395,1746299440723,-454.69914751,0.00019601,2]
[359751396,1746299440732,-450.0,0.00019601,2]
[359751397,1746299440741,-450.0,0.00019601,2]
[359751398,1746299440751,-450.0,0.00019601,2]
[359751399,1746299440760,-450.0,0.00019601,2]
[359751400,1746299440769,-450.0,0.00019601,2]
[359751401,1746299440778,-450.0,0.00019601,2]
[359751402,1746299440787,-2092.08,0.00019601,2]
[359751403,1746299440797,-598.7,0.00019601,2]
[359751404,1746299440807,-450.0,0.00019601,2]
[359751405,1746299440816,-450.0,0.00019601,2]
[359751406,1746299440825,-450.0,0.00019601,2]
[359751407,1746299440835,-612.91,0.00019601,2]
[359751408,1746299440844,-912.96,0.00019601,2]
[359751409,1746299440853,-450.0,0.00019601,2]
[359751410,1746299440863,-450.0,0.00019601,2]
[359751411,1746299440872,-450.0,0.00019601,2]
[359751412,1746299440882,-1987.45,0.00019601,2]
[359751413,1746299440892,-450.0,0.00019601,2]
[359751414,1746299440901,-450.0,0.00019601,2]
[359751415,1746299440910,-450.0,0.00019601,2]
[359751416,1746299440920,-450.0,0.00019601,2]
[359751417,1746299440929,-450.0,0.00019601,2]
[359751418,1746299440939,-597.91,0.00019601,2]
[359751419,1746299440948,-450.0,0.00019601,2]
[359751420,1746299440958,-450.0,0.00019601,2]
[359751421,1746299440967,-538.72,0.00019601,2]
[359751422,1746299440977,-450.0,0.00019601,2]
[359751423,1746299440986,-450.0,0.00019601,2]
[359751424,1746299440996,-450.0,0.00019601,2]
[359751425,1746299441005,-450.0,0.00019601,2]
[359751426,1746299441015,-502.71,0.00019601,2]
[359751427,1746299441024,-2757.65,0.00019601,2]
[359751429,1746299441034,-450.0,0.00019601,2]
[359751430,1746299441043,-450.0,0.00019601,2]
[359751431,1746299441053,-450.0,0.00019601,2]
[359751432,1746299441062,-450.0,0.00019601,2]
[359751433,1746299441072,-540.22183034,0.00019601,2]
[359751434,1746299441081,-529.34,0.00019601,2]
[359751435,1746299441091,-194.53251863,0.00019601,2]
[359751436,1746299441100,-450.0,0.00019601,2]
[359751437,1746299441109,-450.0,0.00019601,2]
[359751438,1746299441118,-450.0,0.00019601,2]
[359751439,1746299441127,-450.0,0.00019601,2]
[359751440,1746299441137,-585.65,0.00019601,2]
[359751441,1746299441146,-450.0,0.00019601,2]
[359751442,1746299441156,-398.10757731,0.00019601,2]
[359751443,1746299441165,-1311.57,0.00019601,2]
[359751444,1746299441175,-450.0,0.00019601,2]
[359751445,1746299441184,-450.0,0.00019601,2]
[359751446,1746299441194,-450.0,0.00019601,2]
[359751447,1746299441203,-450.0,0.00019601,2]
[359751448,1746299441212,-450.0,0.00019601,2]
[359751449,1746299441221,-450.0,0.00019601,2]
[359751450,1746299441231,-450.0,0.00019601,2]
[359751451,1746299441240,-948.23,0.00019601,2]
[359751452,1746299441250,-450.0,0.00019601,2]
[359751453,1746299441259,-1939.69,0.00019601,2]
[359751454,1746299441268,-565.64,0.00019601,2]
[359751455,1746299441277,-450.0,0.00019601,2]
[359751456,1746299441287,-450.0,0.00019601,2]
[359751457,1746299441298,-2070.41,0.00019601,2]
[359751458,1746299441309,-450.0,0.00019601,2]
[359751459,1746299441318,-627.48,0.00019601,2]
[359751460,1746299441327,-185.97104946,0.00019601,2]
[359751461,1746299441337,-404.32921075,0.00019601,2]
[359751462,1746299441346,-450.0,0.00019601,2]
[359751463,1746299441355,-450.0,0.00019601,2]
[359751464,1746299441364,-450.0,0.00019601,2]
[359751465,1746299441373,-508.17,0.00019601,2]
[359751466,1746299441382,-807.18,0.00019601,2]
[359751467,1746299441393,-450.0,0.00019601,2]
[359751468,1746299441403,-450.0,0.00019601,2]
[359751469,1746299441412,-450.0,0.00019601,2]
[359751470,1746299441421,-450.0,0.00019601,2]
[359751471,1746299441431,-855.26,0.00019601,2]
[359751472,1746299441440,-714.45,0.00019601,2]
[359751473,1746299441449,-450.0,0.00019601,2]
[359751474,1746299441458,-450.0,0.00019601,2]
[359751475,1746299441468,-720.02,0.00019601,2]
[359751476,1746299441477,-450.0,0.00019601,2]
[359751477,1746299441487,-144.61662613,0.00019601,2]
[359751478,1746299441616,-1830.37323172,0.00019601,2]
[359751479,1746299441631,-3139.46014215,0.00019601,2]
[359751480,1746299441641,-655.09,0.00019601,2]
[359751481,1746299441651,-450.0,0.00019601,2]
[359751482,1746299441661,-1617.61,0.00019601,2]
[359751483,1746299441670,-450.0,0.00019601,2]
[359751484,1746299441680,-450.0,0.00019601,2]
[359751485,1746299441690,-450.0,0.00019601,2]
[359751486,1746299441699,-450.0,0.00019601,2]
[359751487,1746299441708,-6574.39,0.00019601,2]
[359751488,1746299441718,-450.0,0.00019601,2]
[359751489,1746299441728,-450.0,0.00019601,2]
[359751490,1746299441737,-4408.26,0.00019601,2]
[359751491,1746299441747,-450.0,0.00019601,2]
[359751492,1746299441756,-450.0,0.00019601,2]
[359751493,1746299441766,-537.04,0.00019601,2]
[359751494,1746299441776,-682.97,0.00019601,2]
[359751495,1746299441786,-450.0,0.00019601,2]
[359751496,1746299441796,-2605.05,0.00019601,2]
[359751497,1746299441806,-473.83,0.00019601,2]
[359751498,1746299441815,-549.11,0.00019601,2]
[359751499,1746299441825,-450.0,0.00019601,2]
[359751500,1746299441835,-4511.76,0.00019601,2]
[359751501,1746299441844,-450.0,0.00019601,2]
[359751502,1746299441854,-450.0,0.00019601,2]
[359751503,1746299441864,-450.0,0.00019601,2]
[359751504,1746299441874,-617.16,0.00019601,2]
[359751505,1746299441883,-450.0,0.00019601,2]
[359751506,1746299441893,-90438.74,0.00019601,2]
[359751507,1746299441903,-450.0,0.00019601,2]
[359751508,1746299441913,-247.92912972,0.00019601,2]
[359751509,1746299441922,-523.85,0.00019601,2]
[359751510,1746299441932,-522.12,0.00019601,2]
[359751511,1746299441942,-450.0,0.00019601,2]
[359751512,1746299441952,-450.0,0.00019601,2]
[359751513,1746299441963,-450.0,0.00019601,2]
[359751514,1746299441972,-450.0,0.00019601,2]
[359751515,1746299441982,-4112.43,0.00019601,2]
[359751516,1746299441992,-260.96088975,0.00019601,2]
[359751517,1746299442002,-450.0,0.00019601,2]
[359751518,1746299442011,-519.07,0.00019601,2]
[359751519,1746299442021,-20768.49,0.00019601,2]
[359751520,1746299442254,-905.71,0.00019601,2]
[359751521,1746299442264,-450.0,0.00019601,2]
[359751522,1746299442274,-450.0,0.00019601,2]
[359751523,1746299442283,-1461.97,0.00019601,2]
[359751524,1746299442292,-671.96,0.00019601,2]
[359751525,1746299442305,-450.0,0.00019601,2]
[359751526,1746299442315,-898.22,0.00019601,2]
[359751527,1746299442324,-450.0,0.00019601,2]
[359751528,1746299442334,-450.0,0.00019601,2]
[359751529,1746299442343,-12491.37,0.00019601,2]
[359751530,1746299442352,-450.0,0.00019601,2]
[359751531,1746299442361,-450.0,0.00019601,2]
[359751532,1746299442371,-450.0,0.00019601,2]
[359751533,1746299442380,-903.77,0.00019601,2]
[359751534,1746299442390,-884.65,0.00019601,2]
[359751535,1746299442399,-595.04,0.00019601,2]
[359751536,1746299442408,-450.0,0.00019601,2]
[359751537,1746299442418,-1042.92,0.00019601,2]
[359751538,1746299442427,-450.0,0.00019601,2]
[359751539,1746299442437,-450.0,0.00019601,2]
[359751540,1746299442447,-450.0,0.00019601,2]
[359751541,1746299442457,-450.0,0.00019601,2]
[359751542,1746299442466,-450.0,0.00019601,2]
[359751543,1746299442475,-450.0,0.00019601,2]
[359751544,1746299442485,-450.0,0.00019601,2]
[359751545,1746299442494,-536.45,0.00019601,2]
[359751546,1746299442503,-450.0,0.00019601,2]
[359751547,1746299442512,-450.0,0.00019601,2]
[359751548,1746299442522,-450.0,0.00019601,2]
[359751549,1746299442532,-450.0,0.00019601,2]
[359751550,1746299442543,-467.74,0.00019601,2]
[359751551,1746299442554,-290.0961764,0.00019601,2]
[359751552,1746299442565,-450.0,0.00019601,2]
[359751553,1746299442574,-1291.62,0.00019601,2]
[359751554,1746299442584,-450.0,0.00019601,2]
[359751555,1746299442593,-450.0,0.00019601,2]
[359751556,1746299442602,-450.0,0.00019601,2]
[359751557,1746299442612,-724.73,0.00019601,2]
[359751558,1746299442621,-450.0,0.00019601,2]
[359751559,1746299442630,-450.0,0.00019601,2]
[359751560,1746299442639,-450.0,0.00019601,2]
[359751561,1746299442648,-633.92,0.00019601,2]
[359751562,1746299442658,-450.0,0.00019601,2]
[359751563,1746299442667,-276.74108748,0.00019601,2]
[359751564,1746299442676,-450.0,0.00019601,2]
[359751565,1746299442686,-542.41,0.00019601,2]
[359751566,1746299442695,-450.0,0.00019601,2]
[359751567,1746299442705,-667.76,0.00019601,2]
[359751568,1746299442714,-280.71919491,0.00019601,2]
[359751569,1746299442724,-450.0,0.00019601,2]
[359751570,1746299442734,-450.0,0.00019601,2]
[359751571,1746299442744,-636.89,0.00019601,2]
[359751572,1746299442753,-450.0,0.00019601,2]
[359751573,1746299442763,-901.65,0.00019601,2]
[359751574,1746299442772,-473.95,0.00019601,2]
[359751575,1746299442782,-450.0,0.00019601,2]
[359751576,1746299442791,-450.0,0.00019601,2]
[359751577,1746299442802,-474.22018623,0.00019601,2]
[359751578,1746299442812,-412.14685447,0.00019601,2]
[359751579,1746299442823,-450.0,0.00019601,2]
[359751580,1746299442835,-450.0,0.00019601,2]
[359751581,1746299442845,-450.0,0.00019601,2]
[359751582,1746299442854,-450.0,0.00019601,2]
[359751583,1746299442864,-450.0,0.00019601,2]
[359751584,1746299442874,-450.0,0.00019601,2]
[359751585,1746299442884,-500.0,0.00019601,2]
[359751586,1746299442894,-553.26,0.00019601,2]
[359751587,1746299442903,-460.18,0.00019601,2]
[359751588,1746299442912,-450.0,0.00019601,2]
[359751589,1746299442922,-450.0,0.00019601,2]
[359751590,1746299442931,-479.31271413,0.00019601,2]
[359751591,1746299442941,-450.0,0.00019601,2]
[359751592,1746299442950,-458.32,0.00019601,2]
[359751593,1746299442959,-450.0,0.00019601,2]
[359751594,1746299442969,-450.0,0.00019601,2]
[359751595,1746299442979,-450.0,0.00019601,2]
[359751596,1746299442988,-467.05250635,0.00019601,2]
[359751597,1746299442997,-450.0,0.00019602,2]
[359751598,1746299443007,-450.0,0.00019602,2]
[359751599,1746299443016,-450.0,0.00019602,2]
[359751600,1746299443026,-450.0,0.00019602,2]
[359751601,1746299443035,-450.0,0.00019602,2]
[359751602,1746299443046,-450.0,0.00019602,2]
[359751603,1746299443056,-450.0,0.00019602,2]
[359751604,1746299443066,-450.0,0.00019602,2]
[359751605,1746299443076,-450.0,0.00019602,2]
[359751606,1746299443086,-450.0,0.00019602,2]
[359751607,1746299443096,-450.0,0.00019602,2]
[359751608,1746299443106,-450.0,0.00019602,2]
[359751609,1746299443115,-450.0,0.00019602,2]
[359751610,1746299443125,-450.0,0.00019602,2]
[359751611,1746299443135,-450.0,0.00019602,2]
[359751612,1746299443147,-730.15,0.00019602,2]
[359751613,1746299443156,-450.0,0.00019602,2]
[359751614,1746299443166,-450.0,0.00019602,2]
[359751615,1746299443176,-450.0,0.00019602,2]
[359751616,1746299443186,-450.0,0.00019602,2]
[359751617,1746299443195,-450.0,0.00019602,2]
[359751618,1746299443205,-495.78440254,0.00019602,2]
[359751620,1746299443214,-460.29768648,0.00019602,2]
[359751621,1746299443223,-450.0,0.00019602,2]
[359751622,1746299443235,-450.0,0.00019602,2]
[359751623,1746299443244,-450.0,0.00019602,2]
[359751625,1746299443254,-450.0,0.00019602,2]
[359751627,1746299443263,-538.34,0.00019602,2]
[359751629,1746299443272,-450.0,0.00019602,2]
[359751630,1746299443281,-450.0,0.00019602,2]
[359751631,1746299443291,-597.71,0.00019602,2]
[359751632,1746299443301,-450.0,0.00019602,2]
[359751633,1746299443311,-450.0,0.00019602,2]
[359751634,1746299443321,-754.81,0.00019602,2]
[359751635,1746299443330,-462.55021192,0.00019602,2]
[359751636,1746299443339,-450.0,0.00019602,2]
[359751637,1746299443348,-300.0,0.00019602,2]
[359751638,1746299443358,-566.40820346,0.00019602,2]
[359751639,1746299443367,-512.44,0.00019602,2]
[359751640,1746299443377,-450.0,0.00019602,2]
[359751641,1746299443387,-450.0,0.00019602,2]
[359751642,1746299443397,-450.0,0.00019602,2]
[359751643,1746299443406,-450.0,0.00019602,2]
[359751644,1746299443415,-450.0,0.00019602,2]
[359751645,1746299443424,-450.0,0.00019602,2]
[359751646,1746299443434,-450.0,0.00019602,2]
[359751647,1746299443443,-450.0,0.00019602,2]
[359751648,1746299443452,-503.21061387,0.00019602,2]
[359751649,1746299443462,-450.0,0.00019602,2]
[359751650,1746299443471,-450.0,0.00019602,2]
[359751651,1746299443480,-450.0,0.00019602,2]
[359751652,1746299443489,-450.0,0.00019602,2]
[359751653,1746299443500,-450.0,0.00019602,2]
[359751654,1746299443511,-450.0,0.00019602,2]
[359751655,1746299443521,-450.0,0.00019602,2]
[359751656,1746299443531,-2201.88,0.00019602,2]
[359751657,1746299443540,-450.0,0.00019602,2]
[359751658,1746299443550,-450.0,0.00019602,2]
[359751659,1746299443559,-450.0,0.00019602,2]
[359751660,1746299443568,-452.66416676,0.00019602,2]
[359751661,1746299443578,-522.11,0.00019602,2]
[359751662,1746299443587,-450.0,0.00019602,2]
[359751663,1746299443596,-450.0,0.00019602,2]
[359751664,1746299443606,-450.0,0.00019602,2]
[359751665,1746299443615,-491.89,0.00019602,2]
[359751666,1746299443624,-450.0,0.00019602,2]
[359751667,1746299443633,-450.0,0.00019602,2]
[359751669,1746299443644,-1277.8,0.00019602,2]
[359751671,1746299443653,-450.0,0.00019602,2]
[359751673,1746299443662,-450.0,0.00019602,2]
[359751675,1746299443672,-450.0,0.00019602,2]
[359751677,1746299443681,-1116.32,0.00019602,2]
[359751679,1746299443691,-450.0,0.00019602,2]
[359751681,1746299443700,-450.0,0.00019602,2]
[359751683,1746299443709,-450.0,0.00019602,2]
[359751685,1746299443718,-450.0,0.00019602,2]
[359751686,1746299443728,-485.33,0.00019602,2]
[359751688,1746299443738,-450.0,0.00019602,2]
[359751691,1746299443748,-450.0,0.00019602,2]
[359751693,1746299443758,-450.0,0.00019602,2]
[359751695,1746299443768,-451.73,0.00019602,2]
[359751697,1746299443777,-450.0,0.00019602,2]
[359751698,1746299443787,-500.0,0.00019602,2]
[359751701,1746299443797,-500.0,0.00019602,2]
[359751702,1746299443806,-526.87538493,0.00019602,2]
[359751704,1746299443815,-500.0,0.00019602,2]
[359751707,1746299443825,-450.0,0.00019603,2]
[359751708,1746299443834,-211.18746322,0.00019603,2]
[359751711,1746299443843,-450.0,0.00019603,2]
[359751714,1746299443853,-450.0,0.00019603,2]
[359751717,1746299443863,-150.0,0.00019611,2]
[359751720,1746299443873,-150.0,0.00019611,2]
[359751723,1746299443882,-440.0,0.00019611,2]
[359751726,1746299443892,-961.46022526,0.00019634,2]
[359751729,1746299443902,-1349.08633064,0.00019634,2]
[359751732,1746299443911,-999.0,0.00019671,2]
[359751735,1746299443921,-961.46022526,0.00019678,2]
[359751738,1746299443931,-1349.08633064,0.00019678,2]
[359751741,1746299443940,-1000.0,0.000197,2]
[359751743,1746299443949,-161.89935595,0.0001972,2]
[359751745,1746299443959,-961.46022526,0.00019723,2]
[359751747,1746299443969,-1349.08633064,0.00019723,2]
[359751749,1746299443978,-799.25930071,0.00019745,2]
[359751751,1746299443987,-961.46022526,0.00019767,2]
[359751753,1746299443997,-1349.08633064,0.00019767,2]
[359751755,1746299444007,-1286.08802452,0.00019775,2]
[359751757,1746299444016,-174.44860873,0.00019776,2]
[359751759,1746299444026,-2018.1404183,0.00019799,2]
[359751761,1746299444035,-1000.0,0.000198,2]
[359751763,1746299444045,-500.0,0.00019808,2]
[359751765,1746299444055,-961.46022526,0.00019811,2]
[359751767,1746299444064,-1349.08633064,0.00019811,2]
[359751769,1746299444074,-1286.08802451,0.00019831,2]
[359751771,1746299444084,-500.0,0.00019836,2]
[359751773,1746299444093,-2000.0,0.0001984,2]
[359751775,1746299444103,-200.0,0.0001984,2]
[359751776,1746299444112,-961.46022526,0.00019856,2]
[359751778,1746299444122,-1349.08633064,0.00019856,2]
[359751781,1746299444133,-500.0,0.00019874,2]
[359751783,1746299444143,-475.65,0.00019874,2]
[359751784,1746299444153,-450.0,0.00019874,2]
[359751786,1746299444163,-450.0,0.00019874,2]
[359751788,1746299444172,-1115.61,0.00019874,2]
[359751790,1746299444182,-459.77,0.00019874,2]
[359751792,1746299444192,-450.0,0.00019874,2]
[359751794,1746299444203,-450.0,0.00019874,2]
[359751797,1746299444212,-450.0,0.00019874,2]
[359751798,1746299444222,-526.27,0.00019874,2]
[359751800,1746299444232,-692.04,0.00019874,2]
[359751802,1746299444242,-1249.07,0.00019874,2]
[359751804,1746299444252,-450.0,0.00019874,2]
[359751806,1746299444261,-450.0,0.00019874,2]
[359751808,1746299444271,-450.0,0.00019874,2]
[359751810,1746299444281,-450.0,0.00019874,2]
[359751812,1746299444291,-713.17,0.00019874,2]
[359751814,1746299444302,-606.87,0.00019874,2]
[359751816,1746299444312,-450.0,0.00019874,2]
[359751818,1746299444322,-523.82,0.00019874,2]
[359751820,1746299444331,-1093.77,0.00019874,2]
[359751822,1746299444342,-450.0,0.00019874,2]
[359751824,1746299444352,-5484.27,0.00019874,2]
[359751826,1746299444361,-1373.54,0.00019874,2]
[359751828,1746299444371,-450.0,0.00019874,2]
[359751830,1746299444381,-450.0,0.00019874,2]
[359751832,1746299444393,-554.01,0.00019874,2]
[359751834,1746299444402,-819.82,0.00019874,2]
[359751836,1746299444411,-450.0,0.00019874,2]
[359751838,1746299444419,-450.0,0.00019874,2]
[359751840,1746299444429,-450.0,0.00019874,2]
[359751842,1746299444438,-450.0,0.00019874,2]
[359751844,1746299444448,-99529.17,0.00019874,2]
[359751846,1746299444457,-450.0,0.00019874,2]
[359751848,1746299444468,-2032.14,0.00019874,2]
[359751850,1746299444478,-547.6,0.00019874,2]
[359751852,1746299444487,-450.0,0.00019874,2]
[359751854,1746299444496,-450.0,0.00019874,2]
[359751856,1746299444505,-610.54,0.00019874,2]
[359751858,1746299444515,-450.0,0.00019874,2]
[359751860,1746299444524,-450.0,0.00019874,2]
[359751862,1746299444533,-681.59,0.00019874,2]
[359751864,1746299444543,-450.0,0.00019874,2]
[359751866,1746299444552,-4520.11,0.00019874,2]
[359751868,1746299444561,-450.0,0.00019874,2]
[359751870,1746299444571,-918.93,0.00019874,2]
[359751872,1746299444580,-4226.8,0.00019874,2]
[359751874,1746299444590,-528.12811078,0.00019874,2]
[359751876,1746299444600,-450.0,0.00019874,2]
[359751878,1746299444610,-450.0,0.00019874,2]
[359751880,1746299444619,-450.0,0.00019874,2]
[359751882,1746299444628,-450.0,0.00019874,2]
[359751884,1746299444638,-450.0,0.00019874,2]
[359751886,1746299444647,-450.0,0.00019874,2]
[359751888,1746299444656,-503.83,0.00019874,2]
[359751890,1746299444665,-450.0,0.00019874,2]
[359751892,1746299444674,-450.0,0.00019874,2]
[359751894,1746299444683,-450.0,0.00019874,2]
[359751896,1746299444693,-450.0,0.00019874,2]
[359751898,1746299444702,-450.0,0.00019874,2]
[359751899,1746299444711,-509.26,0.00019874,2]
[359751901,1746299444720,-450.0,0.00019874,2]
[359751904,1746299444729,-541.83,0.00019874,2]
[359751905,1746299444738,-450.0,0.00019875,2]
[359751907,1746299444747,-471.21,0.00019875,2]
[359751909,1746299444756,-450.0,0.00019875,2]
[359751911,1746299444765,-450.0,0.00019875,2]
[359751913,1746299444774,-450.0,0.00019875,2]
[359751915,1746299444783,-450.0,0.00019875,2]
[359751917,1746299444792,-450.0,0.00019875,2]
[359751919,1746299444801,-450.0,0.00019875,2]
[359751921,1746299444811,-450.0,0.00019875,2]
[359751923,1746299444819,-490.27,0.00019875,2]
[359751925,1746299444829,-555.99,0.00019875,2]
[359751927,1746299444839,-450.0,0.00019875,2]
[359751929,1746299444849,-1470.09,0.00019875,2]
[359751931,1746299444858,-180.47388055,0.00019875,2]
[359751932,1746299444867,-450.0,0.00019875,2]
[359751934,1746299444877,-550.27,0.00019875,2]
[359751936,1746299444886,-450.0,0.00019875,2]
[359751938,1746299444896,-604.17,0.00019875,2]
[359751940,1746299444906,-577.97,0.00019875,2]
[359751942,1746299444915,-450.0,0.00019875,2]
[359751944,1746299444925,-450.0,0.00019875,2]
[359751946,1746299444934,-450.0,0.00019875,2]
[359751948,1746299444944,-450.0,0.00019875,2]
[359751950,1746299444953,-577.07,0.00019875,2]
[359751952,1746299444963,-640.0,0.00019875,2]
[359751954,1746299444972,-450.0,0.00019875,2]
[359751956,1746299444981,-626.4,0.00019875,2]
[359751958,1746299444991,-450.0,0.00019875,2]
[359751960,1746299445001,-194.43671757,0.00019875,2]
[359751962,1746299445011,-450.0,0.00019875,2]
[359751964,1746299445020,-641.46,0.00019875,2]
[359751966,1746299445032,-450.0,0.00019875,2]
[359751968,1746299445042,-450.0,0.00019875,2]
[359751970,1746299445051,-450.0,0.00019875,2]
[359751972,1746299445061,-474.19,0.00019875,2]
[359751974,1746299445070,-450.0,0.00019875,2]
[359751976,1746299445079,-450.0,0.00019875,2]
[359751978,1746299445088,-500.0,0.00019875,2]
[359751980,1746299445098,-853.95,0.00019875,2]
[359751982,1746299445108,-873.57,0.00019875,2]
[359751984,1746299445117,-772.73,0.00019875,2]
[359751986,1746299445126,-450.0,0.00019875,2]
[359751988,1746299445136,-1156.11,0.00019875,2]
[359751990,1746299445145,-450.0,0.00019875,2]
[359751992,1746299445155,-450.0,0.00019875,2]
[359751994,1746299445164,-450.0,0.00019875,2]
[359751996,1746299445173,-665.86,0.00019875,2]
[359751998,1746299445183,-450.0,0.00019875,2]
[359752000,1746299445192,-450.0,0.00019875,2]
[359752002,1746299445201,-450.0,0.00019875,2]
[359752004,1746299445210,-477.12,0.00019875,2]
[359752006,1746299445219,-450.0,0.00019875,2]
[359752008,1746299445228,-450.0,0.00019875,2]
[359752010,1746299445237,-450.0,0.00019875,2]
[359752012,1746299445247,-450.0,0.00019875,2]
[359752014,1746299445256,-1258.16,0.00019875,2]
[359752016,1746299445265,-450.0,0.00019875,2]
[359752018,1746299445274,-539.93,0.00019875,2]
[359752020,1746299445283,-450.0,0.00019875,2]
[359752022,1746299445292,-450.0,0.00019875,2]
[359752024,1746299445304,-450.0,0.00019875,2]
[359752026,1746299445313,-450.0,0.00019875,2]
[359752028,1746299445323,-455.56,0.00019875,2]
[359752030,1746299445332,-450.0,0.00019875,2]
[359752032,1746299445341,-450.0,0.00019875,2]
[359752034,1746299445350,-450.0,0.00019875,2]
[359752036,1746299445359,-450.0,0.00019875,2]
[359752038,1746299445368,-450.0,0.00019875,2]
[359752039,1746299445377,-578.5,0.00019875,2]
[359752041,1746299445387,-450.0,0.00019875,2]
[359752043,1746299445397,-450.0,0.00019875,2]
[359752045,1746299445406,-209.22805672,0.00019875,2]
[359752047,1746299445416,-450.0,0.00019875,2]
[359752049,1746299445425,-450.0,0.00019875,2]
[359752051,1746299445434,-450.0,0.00019875,2]
[359752053,1746299445443,-450.0,0.00019875,2]
[359752055,1746299445452,-450.0,0.00019875,2]
[359752057,1746299445460,-2092.08,0.00019875,2]
[359752059,1746299445470,-598.7,0.00019875,2]
[359752061,1746299445480,-450.0,0.00019875,2]
[359752063,1746299445490,-450.0,0.00019875,2]
[359752065,1746299445499,-612.91,0.00019875,2]
[359752067,1746299445508,-912.96,0.00019875,2]
[359752069,1746299445517,-450.0,0.00019875,2]
[359752071,1746299445526,-450.0,0.00019875,2]
[359752073,1746299445535,-450.0,0.00019875,2]
[359752075,1746299445545,-1987.45,0.00019875,2]
[359752077,1746299445554,-450.0,0.00019875,2]
[359752079,1746299445563,-450.0,0.00019875,2]
[359752081,1746299445572,-450.0,0.00019875,2]
[359752083,1746299445581,-450.0,0.00019875,2]
[359752085,1746299445590,-597.91,0.00019875,2]
[359752087,1746299445599,-450.0,0.00019875,2]
[359752089,1746299445608,-538.72,0.00019875,2]
[359752091,1746299445618,-450.0,0.00019875,2]
[359752093,1746299445627,-502.71,0.00019875,2]
[359752095,1746299445636,-2757.65,0.00019875,2]
[359752097,1746299445645,-450.0,0.00019875,2]
[359752099,1746299445654,-450.0,0.00019875,2]
[359752101,1746299445663,-450.0,0.00019875,2]
[359752103,1746299445672,-529.34,0.00019875,2]
[359752105,1746299445681,-538.38,0.00019875,2]
[359752107,1746299445691,-450.0,0.00019875,2]
[359752109,1746299445700,-585.65,0.00019875,2]
[359752111,1746299445709,-450.0,0.00019875,2]
[359752113,1746299445718,-1311.57,0.00019875,2]
[359752114,1746299445727,-450.0,0.00019875,2]
[359752116,1746299445736,-450.0,0.00019875,2]
[359752118,1746299445745,-450.0,0.00019875,2]
[359752120,1746299445755,-450.0,0.00019875,2]
[359752122,1746299445764,-450.0,0.00019875,2]
[359752124,1746299445773,-948.23,0.00019875,2]
[359752126,1746299445782,-1939.69,0.00019875,2]